[Event "*** Biggest EVER Titled Tuesday"]
[Site "Chess.com"]
[Date "2018.04.17"]
[Round "8"]
[White "Rokis13"]
[Black "Vugar_Manafov"]
[Result "1-0"]
[WhiteElo "2431"]
[BlackElo "2307"]
[TimeControl "180+2"]
[EndTime "14:51:30 PDT"]
[Termination "Rokis13 won by resignation"]

1. e4 {[%clk 0:03:01.9]} 1... g6 {[%clk 0:02:56.4]} 2. d4 {[%clk 0:03:02.1]}
2... d6 {[%clk 0:02:55.9]} 3. Nc3 {[%clk 0:03:02.7]} 3... Bg7 {[%clk 0:02:57.2]}
4. Be3 {[%clk 0:03:03.6]} 4... Nc6 {[%clk 0:02:58.5]} 5. f4 {[%clk 0:03:04.8]}
5... Nf6 {[%clk 0:02:57.1]} 6. Nf3 {[%clk 0:03:04.5]} 6... Ng4 {[%clk 0:02:56]}
7. Bg1 {[%clk 0:03:05.3]} 7... O-O {[%clk 0:02:55.2]} 8. h3 {[%clk 0:03:06.2]}
8... Nf6 {[%clk 0:02:56]} 9. Qd2 {[%clk 0:03:07.5]} 9... e5 {[%clk 0:02:55.8]}
10. fxe5 {[%clk 0:03:07.5]} 10... dxe5 {[%clk 0:02:54.7]} 11. d5 {[%clk
0:03:08.8]} 11... Ne7 {[%clk 0:02:54.9]} 12. O-O-O {[%clk 0:03:09.7]} 12... Ne8
{[%clk 0:02:52.5]} 13. Bc4 {[%clk 0:03:07]} 13... Nd6 {[%clk 0:02:52.8]} 14. Bb3
{[%clk 0:03:08.1]} 14... b5 {[%clk 0:02:53.9]} 15. Bc5 {[%clk 0:03:04.6]} 15...
Bd7 {[%clk 0:02:51.6]} 16. Qe2 {[%clk 0:03:04.5]} 16... Qb8 {[%clk 0:02:49.5]}
17. Rdf1 {[%clk 0:02:56.7]} 17... a5 {[%clk 0:02:46.5]} 18. a4 {[%clk
0:02:54.9]} 18... bxa4 {[%clk 0:02:45.2]} 19. Bxa4 {[%clk 0:02:53.9]} 19... Bxa4
{[%clk 0:02:45.4]} 20. Nxa4 {[%clk 0:02:55.8]} 20... Qb7 {[%clk 0:02:44.4]} 21.
Nd2 {[%clk 0:02:56.4]} 21... Rab8 {[%clk 0:02:41.8]} 22. b3 {[%clk 0:02:57]}
22... Rfd8 {[%clk 0:02:35.2]} 23. g4 {[%clk 0:02:56.9]} 23... c6 {[%clk
0:02:33.8]} 24. Qf2 {[%clk 0:02:38.1]} 24... f6 {[%clk 0:02:23.9]} 25. g5 {[%clk
0:02:36.2]} 25... f5 {[%clk 0:02:16.8]} 26. Bxd6 {[%clk 0:02:35.6]} 26... Rxd6
{[%clk 0:02:16.8]} 27. Nc4 {[%clk 0:02:36.7]} 27... Rdd8 {[%clk 0:02:07]} 28.
Nc5 {[%clk 0:02:36.1]} 28... Qa7 {[%clk 0:02:01.3]} 29. Ne6 {[%clk 0:02:36]}
29... Qxf2 {[%clk 0:02:00.4]} 30. Rxf2 {[%clk 0:02:37.9]} 30... cxd5 {[%clk
0:01:59.1]} 31. exd5 {[%clk 0:02:35.6]} 31... Rxd5 {[%clk 0:01:58]} 32. Nxg7
{[%clk 0:02:31.9]} 32... Kxg7 {[%clk 0:01:57.8]} 33. h4 {[%clk 0:02:33.4]} 33...
e4 {[%clk 0:01:51.2]} 34. h5 {[%clk 0:02:33.9]} 34... a4 {[%clk 0:01:48.4]} 35.
hxg6 {[%clk 0:02:33.7]} 35... Nxg6 {[%clk 0:01:43.8]} 36. bxa4 {[%clk 0:02:30]}
36... f4 {[%clk 0:01:39.3]} 37. Rfh2 {[%clk 0:02:30.2]} 37... Nf8 {[%clk
0:01:37.3]} 38. Rh4 {[%clk 0:02:25.9]} 38... Rd4 {[%clk 0:01:22.2]} 39. Ne5
{[%clk 0:02:16.4]} 39... e3 {[%clk 0:01:14.3]} 40. Nc6 {[%clk 0:02:17.3]} 40...
Rbb4 {[%clk 0:01:09.7]} 41. c3 {[%clk 0:02:10]} 41... Rdc4 {[%clk 0:00:46.5]}
42. Nxb4 {[%clk 0:02:09.3]} 42... Rxc3+ {[%clk 0:00:46.5]} 43. Kb2 {[%clk
0:02:10.1]} 43... Rc4 {[%clk 0:00:46.4]} 44. Nd3 {[%clk 0:02:08]} 44... Ne6
{[%clk 0:00:47.1]} 45. Rxh7+ {[%clk 0:02:03.1]} 45... Kg6 {[%clk 0:00:43.3]} 46.
R1h6+ {[%clk 0:01:59.1]} 46... Kf5 {[%clk 0:00:45.2]} 47. Rf6+ {[%clk 0:01:59]}
47... Kg4 {[%clk 0:00:45.9]} 48. Rxe6 {[%clk 0:01:58.6]} 48... Kf3 {[%clk
0:00:46.4]} 49. Rf7 {[%clk 0:01:59]} 49... e2 {[%clk 0:00:44.7]} 50. Rxf4+
{[%clk 0:01:59.1]} 50... Rxf4 {[%clk 0:00:44.1]} 51. Nxf4 {[%clk 0:02:00.3]} 1-0

[Event "*** Biggest EVER Titled Tuesday"]
[Site "Chess.com"]
[Date "2018.04.17"]
[Round "8"]
[White "PawnEatingZombie"]
[Black "Nutflush"]
[Result "1-0"]
[WhiteElo "2029"]
[BlackElo "2031"]
[TimeControl "180+2"]
[EndTime "14:51:30 PDT"]
[Termination "PawnEatingZombie won on time"]

1. d4 {[%clk 0:03:01.9]} 1... Nf6 {[%clk 0:03:00.3]} 2. c4 {[%clk 0:03:02.5]}
2... e6 {[%clk 0:03:01]} 3. Nc3 {[%clk 0:03:03.7]} 3... Bb4 {[%clk 0:03:01.7]}
4. Qc2 {[%clk 0:03:05.2]} 4... O-O {[%clk 0:03:01.3]} 5. e4 {[%clk 0:03:05.3]}
5... d5 {[%clk 0:03:00.4]} 6. e5 {[%clk 0:03:06.5]} 6... Ne4 {[%clk 0:03:01.5]}
7. Bd3 {[%clk 0:03:07.9]} 7... c5 {[%clk 0:03:00.5]} 8. Nf3 {[%clk 0:03:09.2]}
8... Nc6 {[%clk 0:02:45.1]} 9. O-O {[%clk 0:03:01.4]} 9... cxd4 {[%clk
0:02:36.9]} 10. Nxe4 {[%clk 0:02:57.5]} 10... dxe4 {[%clk 0:02:37.1]} 11. Bxe4
{[%clk 0:02:59.1]} 11... Qc7 {[%clk 0:02:01.4]} 12. a3 {[%clk 0:02:27.7]} 12...
Be7 {[%clk 0:02:00.5]} 13. Re1 {[%clk 0:02:27.2]} 13... h6 {[%clk 0:01:56.1]}
14. Bf4 {[%clk 0:02:26.2]} 14... Rd8 {[%clk 0:01:56.5]} 15. Rad1 {[%clk
0:02:25.2]} 15... Na5 {[%clk 0:01:39.5]} 16. b4 {[%clk 0:01:27]} 16... Nxc4
{[%clk 0:01:10.2]} 17. Nxd4 {[%clk 0:01:27.2]} 17... Bd7 {[%clk 0:00:55.3]} 18.
Rc1 {[%clk 0:00:57.5]} 18... Rac8 {[%clk 0:00:56.1]} 19. Bd3 {[%clk 0:00:51.9]}
19... b5 {[%clk 0:00:56.1]} 20. Qe2 {[%clk 0:00:46.5]} 20... Qb6 {[%clk
0:00:54.1]} 21. Qe4 {[%clk 0:00:46.5]} 21... g6 {[%clk 0:00:50.3]} 22. Bxh6
{[%clk 0:00:42.5]} 22... Nxa3 {[%clk 0:00:45.6]} 23. Be3 {[%clk 0:00:42.6]}
23... Qb8 {[%clk 0:00:31.7]} 24. Nf3 {[%clk 0:00:22.6]} 24... Nc4 {[%clk
0:00:25.6]} 25. Bg5 {[%clk 0:00:22]} 25... Bf8 {[%clk 0:00:06.8]} 26. Bf6 {[%clk
0:00:21.5]} 26... Bg7 {[%clk 0:00:03.1]} 27. Qh4 {[%clk 0:00:20.4]} 1-0

[Event "*** Biggest EVER Titled Tuesday"]
[Site "Chess.com"]
[Date "2018.04.17"]
[Round "8"]
[White "Vamostodorecto"]
[Black "BlackBoarder"]
[Result "1-0"]
[WhiteElo "2373"]
[BlackElo "2223"]
[TimeControl "180+2"]
[EndTime "14:51:31 PDT"]
[Termination "Vamostodorecto won by resignation"]

1. d4 {[%clk 0:03:00.9]} 1... e6 {[%clk 0:03:00.2]} 2. c4 {[%clk 0:03:01.1]}
2... f5 {[%clk 0:02:57.2]} 3. Nc3 {[%clk 0:03:01.2]} 3... Nf6 {[%clk 0:02:55.3]}
4. h3 {[%clk 0:02:56.8]} 4... b6 {[%clk 0:02:55.5]} 5. Nf3 {[%clk 0:02:47.5]}
5... Bb7 {[%clk 0:02:55.1]} 6. d5 {[%clk 0:02:46.7]} 6... Be7 {[%clk 0:02:38.6]}
7. Nd4 {[%clk 0:02:40.9]} 7... c5 {[%clk 0:02:01.8]} 8. Nf3 {[%clk 0:02:23]}
8... exd5 {[%clk 0:01:50]} 9. cxd5 {[%clk 0:02:24.9]} 9... d6 {[%clk 0:01:51.4]}
10. g4 {[%clk 0:02:24.7]} 10... Qc8 {[%clk 0:01:27.1]} 11. Ng5 {[%clk
0:02:18.3]} 11... O-O {[%clk 0:01:09.7]} 12. Ne6 {[%clk 0:02:18.9]} 12... Nxd5
{[%clk 0:00:52.4]} 13. Nxd5 {[%clk 0:01:47.6]} 13... Qxe6 {[%clk 0:00:51.7]} 14.
Bg2 {[%clk 0:01:49.1]} 14... Qd7 {[%clk 0:00:21]} 15. Bf4 {[%clk 0:01:40.6]}
15... Nc6 {[%clk 0:00:21.6]} 16. O-O {[%clk 0:01:32.1]} 16... fxg4 {[%clk
0:00:17.4]} 17. hxg4 {[%clk 0:01:27.8]} 17... Qxg4 {[%clk 0:00:17.4]} 18. Bg3
{[%clk 0:01:24.2]} 18... Qd7 {[%clk 0:00:15.9]} 19. Qd3 {[%clk 0:01:17.2]} 19...
Rae8 {[%clk 0:00:14.1]} 20. Rad1 {[%clk 0:01:15.4]} 20... Nb4 {[%clk 0:00:09.8]}
21. Nxb4 {[%clk 0:01:14.4]} 21... Bxg2 {[%clk 0:00:10.6]} 22. Kxg2 {[%clk
0:01:10.1]} 22... cxb4 {[%clk 0:00:11.6]} 23. Rh1 {[%clk 0:01:08.9]} 23... Qb7+
{[%clk 0:00:06.2]} 24. f3 {[%clk 0:01:08.4]} 24... g6 {[%clk 0:00:06.7]} 25.
Qc4+ {[%clk 0:01:07.3]} 25... Rf7 {[%clk 0:00:07.3]} 26. Rxh7 {[%clk 0:01:01.9]}
26... Bf8 {[%clk 0:00:06.7]} 27. Rdh1 {[%clk 0:00:56.6]} 27... Rxe2+ {[%clk
0:00:05.8]} 28. Kg1 {[%clk 0:00:41.5]} 28... d5 {[%clk 0:00:05.1]} 29. Rh8+
{[%clk 0:00:40.5]} 29... Kg7 {[%clk 0:00:06.4]} 30. Qxe2 {[%clk 0:00:39]} 30...
Bc5+ {[%clk 0:00:05.7]} 31. Kg2 {[%clk 0:00:38.9]} 31... Bd4 {[%clk 0:00:04.5]}
1-0

[Event "*** Biggest EVER Titled Tuesday"]
[Site "Chess.com"]
[Date "2018.04.17"]
[Round "8"]
[White "Orest_Vovk"]
[Black "WarlordX"]
[Result "1-0"]
[WhiteElo "2258"]
[BlackElo "2293"]
[TimeControl "180+2"]
[EndTime "14:51:35 PDT"]
[Termination "Orest_Vovk won by resignation"]

1. g4 {[%clk 0:03:01.9]} 1... d5 {[%clk 0:02:56.6]} 2. h3 {[%clk 0:03:02.6]}
2... e5 {[%clk 0:02:56.8]} 3. Bg2 {[%clk 0:03:03.8]} 3... h5 {[%clk 0:02:56.3]}
4. g5 {[%clk 0:03:01.8]} 4... g6 {[%clk 0:02:52.7]} 5. d4 {[%clk 0:03:02]} 5...
e4 {[%clk 0:02:53.6]} 6. c4 {[%clk 0:03:02.3]} 6... c6 {[%clk 0:02:55.1]} 7. Nc3
{[%clk 0:03:02.8]} 7... Ne7 {[%clk 0:02:48.9]} 8. Bf4 {[%clk 0:02:59.4]} 8...
Bg7 {[%clk 0:02:49.1]} 9. e3 {[%clk 0:02:59.5]} 9... Nd7 {[%clk 0:02:22]} 10.
cxd5 {[%clk 0:02:55.1]} 10... cxd5 {[%clk 0:02:23]} 11. Qa4 {[%clk 0:02:51.6]}
11... O-O {[%clk 0:02:22.8]} 12. Nge2 {[%clk 0:02:52.4]} 12... Nb6 {[%clk
0:02:23.8]} 13. Qb3 {[%clk 0:02:51.1]} 13... Nc6 {[%clk 0:02:20.2]} 14. O-O
{[%clk 0:02:46.9]} 14... Be6 {[%clk 0:02:18.7]} 15. f3 {[%clk 0:02:42.1]} 15...
exf3 {[%clk 0:02:16.8]} 16. Rxf3 {[%clk 0:02:42.5]} 16... Qd7 {[%clk 0:02:18.3]}
17. Raf1 {[%clk 0:02:33.7]} 17... Na5 {[%clk 0:02:19.4]} 18. Qb5 {[%clk
0:02:24.2]} 18... Nac4 {[%clk 0:02:17.6]} 19. Qxd7 {[%clk 0:02:16.1]} 19... Bxd7
{[%clk 0:02:16.9]} 20. R3f2 {[%clk 0:02:05.2]} 20... Nxb2 {[%clk 0:02:16]} 21.
Nxd5 {[%clk 0:02:01.9]} 21... Nxd5 {[%clk 0:02:16.5]} 22. Bxd5 {[%clk
0:02:03.8]} 22... Bxh3 {[%clk 0:02:17.6]} 23. Rb1 {[%clk 0:01:48.3]} 23... Nd3
{[%clk 0:02:18.2]} 24. Rh2 {[%clk 0:01:44.8]} 24... Nxf4 {[%clk 0:02:18.1]} 25.
Nxf4 {[%clk 0:01:44.8]} 25... Bf5 {[%clk 0:02:13.8]} 26. Rxb7 {[%clk 0:01:44.6]}
26... a5 {[%clk 0:01:41.2]} 27. Rxf7 {[%clk 0:01:38]} 27... Rxf7 {[%clk
0:01:41.8]} 28. Bxa8 {[%clk 0:01:38.4]} 28... Re7 {[%clk 0:01:36.1]} 29. Nd5
{[%clk 0:01:25.2]} 29... Ra7 {[%clk 0:01:20.2]} 30. Bc6 {[%clk 0:01:16.7]} 30...
Be4 {[%clk 0:01:16.5]} 31. Rb2 {[%clk 0:01:04.3]} 31... Kf7 {[%clk 0:01:00.2]}
32. Rb6 {[%clk 0:00:56.8]} 32... Bf8 {[%clk 0:00:33.3]} 33. Nf4 {[%clk
0:00:49.1]} 33... Bf5 {[%clk 0:00:26.7]} 34. Bd5+ {[%clk 0:00:43.6]} 34... Kg7
{[%clk 0:00:28.1]} 35. e4 {[%clk 0:00:39.9]} 35... Bd6 {[%clk 0:00:25.2]} 36.
Rxd6 {[%clk 0:00:39.2]} 1-0

[Event "*** Biggest EVER Titled Tuesday"]
[Site "Chess.com"]
[Date "2018.04.17"]
[Round "8"]
[White "Saitama_Hero"]
[Black "Marcin"]
[Result "1-0"]
[WhiteElo "2169"]
[BlackElo "2292"]
[TimeControl "180+2"]
[EndTime "14:51:37 PDT"]
[Termination "Saitama_Hero won by resignation"]

1. d4 {[%clk 0:03:01.9]} 1... d5 {[%clk 0:03:00.1]} 2. c4 {[%clk 0:03:01]} 2...
dxc4 {[%clk 0:03:02]} 3. Nf3 {[%clk 0:03:00]} 3... a6 {[%clk 0:03:02.8]} 4. e3
{[%clk 0:03:01.1]} 4... Nf6 {[%clk 0:03:01.8]} 5. Bxc4 {[%clk 0:02:58.5]} 5...
e6 {[%clk 0:03:03]} 6. O-O {[%clk 0:02:55.8]} 6... c5 {[%clk 0:03:04.4]} 7. a4
{[%clk 0:02:54.5]} 7... Nc6 {[%clk 0:03:00.6]} 8. Qe2 {[%clk 0:02:55.8]} 8...
cxd4 {[%clk 0:03:00.9]} 9. Rd1 {[%clk 0:02:55.9]} 9... Bd6 {[%clk 0:02:57.1]}
10. exd4 {[%clk 0:02:56.4]} 10... O-O {[%clk 0:02:55.7]} 11. Nc3 {[%clk
0:02:57.7]} 11... h6 {[%clk 0:02:42.4]} 12. Ne5 {[%clk 0:02:54.7]} 12... Nb4
{[%clk 0:02:27.1]} 13. Bf4 {[%clk 0:02:45.9]} 13... b6 {[%clk 0:02:25.5]} 14.
Bg3 {[%clk 0:02:11]} 14... Bb7 {[%clk 0:02:24]} 15. Rac1 {[%clk 0:02:00.2]}
15... Nbd5 {[%clk 0:02:23.7]} 16. Nxd5 {[%clk 0:01:51]} 16... Nxd5 {[%clk
0:02:19.1]} 17. Bd3 {[%clk 0:01:47.8]} 17... Nf6 {[%clk 0:02:07.3]} 18. Bb1
{[%clk 0:01:41]} 18... Rc8 {[%clk 0:02:01.8]} 19. Bd3 {[%clk 0:01:34.3]} 19...
Rxc1 {[%clk 0:01:54.3]} 20. Rxc1 {[%clk 0:01:36.2]} 20... Qa8 {[%clk 0:01:55.4]}
21. Nxf7 {[%clk 0:01:19.1]} 21... Bxg3 {[%clk 0:01:18.9]} 22. Nxh6+ {[%clk
0:01:16.4]} 22... gxh6 {[%clk 0:01:19.6]} 23. Qxe6+ {[%clk 0:01:15.9]} 23... Kg7
{[%clk 0:01:09.1]} 24. hxg3 {[%clk 0:01:11.3]} 24... Qd8 {[%clk 0:00:54.4]} 25.
Qf5 {[%clk 0:01:01.3]} 25... Qe7 {[%clk 0:00:17.8]} 26. Qg6+ {[%clk 0:00:58.6]}
26... Kh8 {[%clk 0:00:19.1]} 27. Qxh6+ {[%clk 0:01:00]} 27... Nh7 {[%clk
0:00:17.6]} 28. Bxh7 {[%clk 0:00:58.6]} 28... Rf6 {[%clk 0:00:10.4]} 29. Qh4
{[%clk 0:00:34.4]} 29... Kg7 {[%clk 0:00:04.4]} 30. Bd3 {[%clk 0:00:32.2]} 30...
Qd6 {[%clk 0:00:02.8]} 1-0

[Event "*** Biggest EVER Titled Tuesday"]
[Site "Chess.com"]
[Date "2018.04.17"]
[Round "8"]
[White "Sanan_Sjugirov"]
[Black "sergiochess83"]
[Result "0-1"]
[WhiteElo "2818"]
[BlackElo "2803"]
[TimeControl "180+2"]
[EndTime "14:51:39 PDT"]
[Termination "sergiochess83 won by resignation"]

1. e4 {[%clk 0:03:01.9]} 1... e5 {[%clk 0:02:59.2]} 2. Nf3 {[%clk 0:03:02.8]}
2... Nc6 {[%clk 0:03:00.3]} 3. Bb5 {[%clk 0:03:03.5]} 3... a6 {[%clk 0:03:01.4]}
4. Ba4 {[%clk 0:03:04.4]} 4... Nf6 {[%clk 0:03:02.5]} 5. O-O {[%clk 0:03:05.5]}
5... Be7 {[%clk 0:02:51.4]} 6. Re1 {[%clk 0:03:04.2]} 6... b5 {[%clk 0:02:51.9]}
7. Bb3 {[%clk 0:03:04.8]} 7... O-O {[%clk 0:02:52]} 8. a4 {[%clk 0:02:59.5]}
8... b4 {[%clk 0:02:51.9]} 9. d4 {[%clk 0:02:51.7]} 9... d6 {[%clk 0:02:41]} 10.
dxe5 {[%clk 0:02:51.5]} 10... Nxe5 {[%clk 0:02:42]} 11. Nbd2 {[%clk 0:02:43.4]}
11... Bg4 {[%clk 0:02:10.6]} 12. h3 {[%clk 0:02:42.8]} 12... Bh5 {[%clk
0:02:11.6]} 13. Qe2 {[%clk 0:02:39]} 13... Nfd7 {[%clk 0:02:07.1]} 14. g4 {[%clk
0:02:31.9]} 14... Nxf3+ {[%clk 0:02:07.8]} 15. Nxf3 {[%clk 0:02:30]} 15... Bg6
{[%clk 0:02:09.7]} 16. Nd4 {[%clk 0:02:19.7]} 16... Bf6 {[%clk 0:01:41]} 17. Nc6
{[%clk 0:02:19.5]} 17... Qe8 {[%clk 0:01:38.6]} 18. Nxb4 {[%clk 0:02:19.2]}
18... Nc5 {[%clk 0:01:30.7]} 19. Nd5 {[%clk 0:02:14.9]} 19... Bd8 {[%clk
0:01:27.2]} 20. Bc4 {[%clk 0:01:50.4]} 20... Qxe4 {[%clk 0:01:16.5]} 21. Qxe4
{[%clk 0:01:48]} 21... Nxe4 {[%clk 0:01:17.6]} 22. Be3 {[%clk 0:01:40.8]} 22...
Rb8 {[%clk 0:00:42.1]} 23. Bxa6 {[%clk 0:01:24.5]} 23... Rxb2 {[%clk 0:00:41.7]}
24. Bd3 {[%clk 0:01:23.3]} 24... Ng5 {[%clk 0:00:27.7]} 25. Kg2 {[%clk
0:01:05.8]} 25... Bxd3 {[%clk 0:00:26.6]} 26. cxd3 {[%clk 0:01:07.7]} 26... Ne6
{[%clk 0:00:27.7]} 27. a5 {[%clk 0:01:04.3]} 27... c6 {[%clk 0:00:27.5]} 28. Nc3
{[%clk 0:01:02.6]} 28... d5 {[%clk 0:00:26.6]} 29. Na4 {[%clk 0:00:55.9]} 29...
Rb5 {[%clk 0:00:22.2]} 30. a6 {[%clk 0:00:54.8]} 30... Ba5 {[%clk 0:00:20.2]}
31. Reb1 {[%clk 0:00:49.7]} 31... d4 {[%clk 0:00:15.4]} 32. Bc1 {[%clk
0:00:46.7]} 32... Ra8 {[%clk 0:00:13.9]} 33. Rxb5 {[%clk 0:00:44.6]} 33... cxb5
{[%clk 0:00:15.1]} 34. Nb2 {[%clk 0:00:44]} 34... Bc3 {[%clk 0:00:15.7]} 35. Ra5
{[%clk 0:00:37.3]} 35... Bxa5 {[%clk 0:00:16.1]} 0-1

[Event "*** Biggest EVER Titled Tuesday"]
[Site "Chess.com"]
[Date "2018.04.17"]
[Round "8"]
[White "MrRooke6"]
[Black "GameOverBro"]
[Result "0-1"]
[WhiteElo "2400"]
[BlackElo "2450"]
[TimeControl "180+2"]
[EndTime "14:51:46 PDT"]
[Termination "GameOverBro won by resignation"]

1. c4 {[%clk 0:03:01.9]} 1... d6 {[%clk 0:02:59.9]} 2. d4 {[%clk 0:03:01.9]}
2... Nf6 {[%clk 0:03:00.6]} 3. Nf3 {[%clk 0:03:02]} 3... Nbd7 {[%clk 0:03:01.6]}
4. Nc3 {[%clk 0:03:03]} 4... e5 {[%clk 0:03:02.2]} 5. e4 {[%clk 0:03:04.3]} 5...
Be7 {[%clk 0:03:03.5]} 6. Be2 {[%clk 0:03:05.4]} 6... O-O {[%clk 0:03:05]} 7.
O-O {[%clk 0:03:05.3]} 7... c6 {[%clk 0:03:06.5]} 8. h3 {[%clk 0:03:04.2]} 8...
a5 {[%clk 0:03:05.5]} 9. Be3 {[%clk 0:03:04.7]} 9... a4 {[%clk 0:03:06]} 10. Qc2
{[%clk 0:03:03.6]} 10... Qa5 {[%clk 0:03:06.6]} 11. Rad1 {[%clk 0:03:00.6]}
11... exd4 {[%clk 0:03:04.7]} 12. Nxd4 {[%clk 0:03:01.3]} 12... Nc5 {[%clk
0:03:05.9]} 13. Rfe1 {[%clk 0:02:59.3]} 13... Re8 {[%clk 0:02:59.5]} 14. f4
{[%clk 0:02:58.7]} 14... Bf8 {[%clk 0:02:53.6]} 15. Bf3 {[%clk 0:02:59.7]} 15...
Qb4 {[%clk 0:02:53.5]} 16. Bf2 {[%clk 0:02:44.9]} 16... Qxc4 {[%clk 0:02:30]}
17. e5 {[%clk 0:02:42.8]} 17... dxe5 {[%clk 0:02:13.7]} 18. fxe5 {[%clk
0:02:44.7]} 18... Nfd7 {[%clk 0:02:11.4]} 19. b3 {[%clk 0:02:37.2]} 19... axb3
{[%clk 0:02:05.1]} 20. axb3 {[%clk 0:02:38.3]} 20... Qb4 {[%clk 0:02:03.3]} 21.
Bg3 {[%clk 0:02:36.9]} 21... g6 {[%clk 0:01:48]} 22. Bg4 {[%clk 0:02:19]} 22...
Bg7 {[%clk 0:01:46.9]} 23. e6 {[%clk 0:01:48.9]} 23... Bxd4+ {[%clk 0:01:43.2]}
24. Rxd4 {[%clk 0:01:50.1]} 24... Qxd4+ {[%clk 0:01:42]} 25. Bf2 {[%clk
0:01:51.2]} 25... Qd6 {[%clk 0:01:18.6]} 26. Rd1 {[%clk 0:01:43.8]} 26... Qe7
{[%clk 0:01:10.4]} 27. exd7 {[%clk 0:01:41.7]} 27... Bxd7 {[%clk 0:01:11.4]} 28.
Nd5 {[%clk 0:01:29.3]} 28... cxd5 {[%clk 0:01:08.1]} 29. Bxc5 {[%clk 0:01:30.1]}
29... Rac8 {[%clk 0:01:00.6]} 30. Bxe7 {[%clk 0:01:05]} 30... Rxc2 {[%clk
0:01:00.8]} 31. Bf6 {[%clk 0:01:05.7]} 31... Bxg4 {[%clk 0:01:00.2]} 32. hxg4
{[%clk 0:01:07.6]} 32... h6 {[%clk 0:00:57.1]} 33. Rxd5 {[%clk 0:01:07.6]} 33...
g5 {[%clk 0:00:56.5]} 34. Rd7 {[%clk 0:01:06.9]} 34... Re1+ {[%clk 0:00:53.6]}
35. Kh2 {[%clk 0:01:07.4]} 35... Ree2 {[%clk 0:00:55.1]} 36. Rxb7 {[%clk
0:01:03.7]} 36... Rxg2+ {[%clk 0:00:57]} 37. Kh3 {[%clk 0:01:04.9]} 37... Rgd2
{[%clk 0:00:56.6]} 38. Be5 {[%clk 0:00:47.2]} 38... Rd3+ {[%clk 0:00:54.3]} 39.
Bg3 {[%clk 0:00:47.8]} 39... Rcc3 {[%clk 0:00:54.5]} 40. Re7 {[%clk 0:00:44.5]}
40... Rxg3+ {[%clk 0:00:54.5]} 41. Kh2 {[%clk 0:00:45.8]} 41... Rxb3 {[%clk
0:00:55.7]} 42. Re8+ {[%clk 0:00:45.4]} 42... Kg7 {[%clk 0:00:56.3]} 43. Re5
{[%clk 0:00:45.9]} 43... Rxg4 {[%clk 0:00:55.9]} 44. Rf5 {[%clk 0:00:46.7]}
44... h5 {[%clk 0:00:54.7]} 45. Kh1 {[%clk 0:00:47]} 45... Kg6 {[%clk
0:00:55.7]} 46. Rf2 {[%clk 0:00:46.5]} 46... Rh3+ {[%clk 0:00:55.2]} 0-1

[Event "*** Biggest EVER Titled Tuesday"]
[Site "Chess.com"]
[Date "2018.04.17"]
[Round "8"]
[White "Jospem"]
[Black "Korchmar_Vasiliy"]
[Result "0-1"]
[WhiteElo "2687"]
[BlackElo "2687"]
[TimeControl "180+2"]
[EndTime "14:51:56 PDT"]
[Termination "Korchmar_Vasiliy won by resignation"]

1. e4 {[%clk 0:03:01.9]} 1... c5 {[%clk 0:03:00.6]} 2. Nf3 {[%clk 0:03:03]} 2...
d6 {[%clk 0:03:01.5]} 3. d4 {[%clk 0:03:04.1]} 3... cxd4 {[%clk 0:03:02.5]} 4.
Nxd4 {[%clk 0:03:06]} 4... Nf6 {[%clk 0:03:04.1]} 5. Nc3 {[%clk 0:03:07.6]} 5...
Nc6 {[%clk 0:03:01.8]} 6. Bg5 {[%clk 0:03:06.9]} 6... e6 {[%clk 0:03:02.8]} 7.
Qd2 {[%clk 0:03:08.4]} 7... a6 {[%clk 0:03:01.8]} 8. O-O-O {[%clk 0:03:09.9]}
8... h6 {[%clk 0:03:01.9]} 9. Nxc6 {[%clk 0:03:11.4]} 9... bxc6 {[%clk
0:03:02.3]} 10. Bf4 {[%clk 0:03:13.3]} 10... d5 {[%clk 0:03:03.3]} 11. Qe3
{[%clk 0:03:15]} 11... Bb4 {[%clk 0:03:03.4]} 12. Be2 {[%clk 0:03:16]} 12... O-O
{[%clk 0:03:03.9]} 13. e5 {[%clk 0:03:15.6]} 13... Nh7 {[%clk 0:03:04.5]} 14. h4
{[%clk 0:03:15.4]} 14... c5 {[%clk 0:02:46.7]} 15. a3 {[%clk 0:02:10.7]} 15...
Bxc3 {[%clk 0:02:43.7]} 16. Qxc3 {[%clk 0:02:11.2]} 16... Qb6 {[%clk 0:02:39.2]}
17. Rh3 {[%clk 0:01:56.1]} 17... a5 {[%clk 0:02:34.8]} 18. Rg3 {[%clk
0:01:56.2]} 18... Kh8 {[%clk 0:02:32]} 19. Qd2 {[%clk 0:01:36.6]} 19... Ba6
{[%clk 0:02:28.2]} 20. Bxa6 {[%clk 0:01:18]} 20... Qxa6 {[%clk 0:02:30.1]} 21.
Qd3 {[%clk 0:01:08.1]} 21... Qb6 {[%clk 0:02:17.2]} 22. c4 {[%clk 0:01:08.3]}
22... Rab8 {[%clk 0:02:12.8]} 23. Rd2 {[%clk 0:01:09.4]} 23... d4 {[%clk
0:02:10.8]} 24. Kd1 {[%clk 0:01:06]} 24... a4 {[%clk 0:01:51.6]} 25. Ke1 {[%clk
0:01:06.5]} 25... Qa5 {[%clk 0:01:52]} 26. Qc2 {[%clk 0:00:59.6]} 26... Rb6
{[%clk 0:01:47.1]} 27. Kf1 {[%clk 0:00:59.2]} 27... Rfb8 {[%clk 0:01:47.8]} 28.
Qc1 {[%clk 0:01:00.6]} 28... Rb3 {[%clk 0:01:28.3]} 29. Rgd3 {[%clk 0:01:00.3]}
29... Nf8 {[%clk 0:01:25.2]} 30. h5 {[%clk 0:00:57.1]} 30... Nd7 {[%clk
0:01:23.2]} 31. Rd1 {[%clk 0:00:46.3]} 31... Qd8 {[%clk 0:01:16.3]} 32. Rxb3
{[%clk 0:00:21.8]} 32... Rxb3 {[%clk 0:01:16.7]} 33. g3 {[%clk 0:00:23.3]} 33...
Qb8 {[%clk 0:01:05.9]} 34. Rd2 {[%clk 0:00:23.4]} 34... Nxe5 {[%clk 0:01:02.1]}
35. Re2 {[%clk 0:00:24.7]} 35... Qb7 {[%clk 0:01:00]} 36. Rxe5 {[%clk
0:00:21.6]} 36... Rxb2 {[%clk 0:00:50.1]} 37. Re4 {[%clk 0:00:03.3]} 37... Rb1
{[%clk 0:00:50]} 38. f3 {[%clk 0:00:04]} 38... Rxc1+ {[%clk 0:00:50.8]} 39. Bxc1
{[%clk 0:00:05.9]} 0-1